bitfinex-derivatives/quotes_BTCF0:USTF0_20210108
["timestamp","ask_amount","ask_price","bid_price","bid_amount"]
[1610084771160,4.52011957,38284.0,38266.0,0.09916]
[1610084771661,4.52011957,38284.0,38267.0,0.03231677]
[1610084771662,0.00801732,38277.0,38267.0,0.03231677]
[1610084772362,0.45131732,38277.0,38267.0,0.03231677]
[1610084772564,0.4433,38277.0,38267.0,0.03231677]
[1610084772762,0.00801053,38279.0,38267.0,0.03231677]
[1610084772963,3.6829,38268.0,38267.0,0.03231677]
[1610084773163,3.81922608,38268.0,38267.0,0.03231677]
[1610084774365,3.81922608,38268.0,38250.0,0.03232097]
[1610084774764,3.81922608,38268.0,38267.0,0.03232186]
[1610084774964,3.81922608,38268.0,38251.0,0.03232284]
[1610084775165,3.81922608,38268.0,38267.0,0.03232393]
[1610084775565,3.81922608,38268.0,38252.0,0.03232355]
[1610084775765,3.81922608,38268.0,38267.0,0.03232299]
[1610084775967,0.13632608,38268.0,38253.0,0.03232332]
[1610084776169,0.00796401,38271.0,38253.0,0.03232332]
[1610084776367,0.00796401,38271.0,38267.0,0.03232399]
[1610084776568,0.00796053,38272.0,38254.0,0.03232443]
[1610084776768,0.00796053,38272.0,38251.0,0.03232296]
[1610084776969,0.00796053,38272.0,38255.0,0.03232134]
[1610084777272,0.13632608,38268.0,38252.0,0.16864785]
[1610084777570,0.13632608,38268.0,38253.0,0.03232086]
[1610084778071,0.13632608,38268.0,38252.0,0.13432608]
[1610084779169,0.13632608,38253.0,38252.0,0.13432608]
[1610084779368,0.13632608,38253.0,38252.0,0.16665057]
[1610084779669,0.00795087,38270.0,38252.0,0.16665057]
[1610084780169,0.00795087,38270.0,38253.0,0.03232312]
[1610084780373,0.0079538,38272.0,38253.0,0.03232312]
[1610084780870,0.02373605,38278.0,38253.0,0.03232312]
[1610084781068,0.13632608,38260.0,38253.0,0.03232312]
[1610084781970,0.13632608,38260.0,38251.0,0.03232185]
[1610084782473,0.13632608,38260.0,38254.0,0.00030859]
[1610084782671,0.13632608,38260.0,38252.0,0.03232151]
[1610084782872,0.13632608,38260.0,38255.0,0.03232151]
[1610084783072,0.02368882,38274.0,38251.0,0.03232188]
[1610084783373,0.13632608,38256.0,38250.0,0.12421]
[1610084783572,0.13632608,38256.0,38252.0,0.03232233]
[1610084783873,0.13632608,38256.0,38252.0,0.12912]
[1610084784172,0.13632608,38256.0,38253.0,0.03232469]
[1610084788176,0.13632608,38256.0,38252.0,0.12751916]
[1610084788575,0.13632608,38256.0,38253.0,0.00030866]
[1610084788776,0.13632608,38256.0,38253.0,0.03232934]
[1610084792084,0.00787153,38263.0,38253.0,0.03232934]
[1610084792381,0.00786415,38266.0,38253.0,0.03232934]
[1610084792783,0.00786886,38270.0,38253.0,0.03232934]
[1610084793282,0.0078688,38274.0,38268.0,0.13632608]
[1610084793482,0.14419788,38275.0,38268.0,0.26795608]
[1610084793681,0.14419788,38275.0,38269.0,0.03232067]
[1610084793882,0.13632608,38275.0,38269.0,0.03232067]
[1610084794382,0.00786374,38274.0,38269.0,0.03232067]
[1610084794783,0.46189785,38270.0,38269.0,0.03232067]
[1610084795383,0.59822393,38270.0,38269.0,0.03232067]
[1610084795882,0.59822393,38270.0,38269.0,0.00030863]
[1610084796084,1.04512393,38270.0,38257.0,0.13632608]
[1610084796282,0.59822393,38270.0,38252.0,0.12751916]
[1610084796482,0.0078383,38265.0,38258.0,0.03233017]
[1610084796681,0.0078383,38265.0,38227.0,4.3]
[1610084796682,0.0078383,38265.0,38253.0,0.03233232]
[1610084797083,0.00782735,38260.0,38259.0,0.03233395]
[1610084797283,0.14415343,38260.0,38254.0,0.03233344]
[1610084797483,0.14415343,38260.0,38244.0,0.12017]
[1610084797484,0.6264,38259.0,38244.0,0.12017]
[1610084797683,1.5,38259.0,38244.0,0.12017]
[1610084797886,0.00782096,38256.0,38255.0,0.03233458]
[1610084798084,3.45072096,38256.0,38228.0,0.06404725]
[1610084798284,1.5,38255.0,38245.0,0.0323419]
[1610084798483,5.12715242,38256.0,38245.0,0.00030878]
[1610084798685,0.02323824,38246.0,38229.0,0.14594377]
[1610084798886,0.5723,38242.0,38229.0,0.1136]
[1610084799189,1.00836258,38246.0,38212.0,0.13632608]
[1610084799386,3.3969,38230.0,38220.0,0.09242]
[1610084799887,3.3969,38230.0,38221.0,0.03235179]
[1610084800088,3.3969,38230.0,38220.0,0.07642]
[1610084800388,3.3969,38230.0,38197.0,0.16021457]
[1610084800988,3.40464041,38230.0,38197.0,0.19257253]
[1610084801188,0.13632608,38206.0,38204.0,0.13632608]
[1610084801789,0.13632608,38206.0,38205.0,0.03235826]
[1610084801989,0.13632608,38206.0,38205.0,0.10872]
[1610084802190,3.3969,38230.0,38205.0,0.10872]
[1610084802592,3.3969,38230.0,38206.0,0.03235734]
[1610084803191,0.13632608,38225.0,38221.0,0.13632608]
[1610084803591,0.00771884,38232.0,38221.0,0.13632608]
[1610084803793,0.0229872,38235.0,38222.0,0.03235754]
[1610084803994,0.0229872,38235.0,38221.0,0.12552608]
[1610084804195,4.3296,38231.0,38215.0,0.12007]
[1610084804597,0.00772016,38238.0,38216.0,0.03235466]
[1610084804997,0.02300643,38237.0,38216.0,0.03235466]
[1610084805197,0.13632608,38217.0,38216.0,0.03235466]
[1610084806797,0.13632608,38217.0,38206.0,0.03236464]
[1610084807003,0.13632608,38217.0,38216.0,0.000309]
[1610084807301,0.13632608,38217.0,38207.0,0.000309]
[1610084807500,0.13632608,38217.0,38206.0,0.0003056]
[1610084807698,0.13632608,38217.0,38208.0,0.00030563]
[1610084807899,0.13632608,38217.0,38205.0,0.09802]
[1610084808401,0.22214608,38217.0,38209.0,0.00030564]
[1610084808600,0.22214608,38217.0,38206.0,0.00030568]
[1610084808900,3.0516,38210.0,38195.0,0.03207289]
[1610084809103,0.00030568,38198.0,38187.0,0.03207457]
[1610084809301,0.01515924,38214.0,38174.0,0.13632608]
[1610084809302,0.13632608,38208.0,38174.0,0.13632608]
[1610084809500,0.13632608,38208.0,38166.0,0.06414578]
[1610084809501,3.0166,38190.0,38166.0,0.06414578]
[1610084809705,3.0166,38190.0,38175.0,0.03238529]
[1610084810001,3.0166,38190.0,38152.0,2.9433]
[1610084810002,3.0166,38190.0,38167.0,0.03238716]
[1610084810201,3.0166,38190.0,38176.0,0.00030582]
[1610084810601,0.00759562,38192.0,38171.0,0.11183]
[1610084810903,0.02259229,38191.0,38177.0,0.00030582]
[1610084811401,0.02259229,38191.0,38160.0,0.10349]
[1610084811402,0.13632608,38178.0,38170.0,0.13632608]
[1610084811800,0.13632608,38178.0,38173.0,0.00030583]
[1610084812002,0.13632608,38178.0,38171.0,0.00030583]
[1610084812200,0.13632608,38178.0,38174.0,0.00030583]
[1610084812600,0.13632608,38178.0,38172.0,0.00030585]
[1610084812800,0.13632608,38178.0,38170.0,0.13632608]
[1610084813303,0.13632608,38171.0,38154.0,0.13632608]
[1610084813510,0.25961608,38171.0,38154.0,0.13632608]
[1610084813904,0.25961608,38171.0,38119.0,7.5427]
[1610084813905,0.25961608,38171.0,38155.0,0.00030589]
[1610084814104,0.25961608,38171.0,38155.0,0.0006118]
[1610084814302,0.25961608,38171.0,38155.0,0.00030589]
[1610084814702,0.25961608,38171.0,38156.0,0.00030589]
[1610084815104,0.12329,38171.0,38156.0,0.00030589]
[1610084815304,0.12329,38171.0,38169.0,0.13632608]
[1610084815505,0.13632608,38183.0,38169.0,0.13632608]
[1610084815706,0.12136,38184.0,38169.0,0.13632608]
[1610084815904,0.12136,38184.0,38169.0,0.25693608]
[1610084816107,0.62514095,38194.0,38169.0,0.25693608]
[1610084816108,0.00753276,38193.0,38169.0,0.25693608]
[1610084816305,0.00753276,38193.0,38182.0,4.2838]
[1610084816505,0.00754355,38200.0,38182.0,4.42079]
[1610084816906,0.05251355,38207.0,38183.0,0.00030577]
[1610084817106,0.04495966,38207.0,38183.0,0.00030577]
[1610084817407,0.03,38207.0,38206.0,0.23968608]
[1610084817608,0.3401869,38217.0,38206.0,0.23968608]
[1610084818007,0.3401869,38217.0,38207.0,0.00030564]
[1610084818306,0.3401869,38217.0,38182.0,0.13699]
[1610084818506,0.3401869,38217.0,38199.0,0.00030564]
[1610084818708,0.3401869,38217.0,38199.0,0.08570564]
[1610084819108,0.3401869,38217.0,38200.0,0.00030564]
[1610084820209,0.3401869,38217.0,38199.0,0.0854]
[1610084821313,0.13632608,38200.0,38199.0,0.0854]
[1610084822411,0.27338608,38200.0,38199.0,0.0854]
[1610084822612,0.27338608,38200.0,38182.0,0.13699]
[1610084822914,0.0016035,38192.0,38179.0,4.1938]
[1610084823110,0.27338608,38200.0,38180.0,0.00030565]
[1610084823312,0.13632608,38181.0,38180.0,0.00030565]
[1610084824812,0.13632608,38181.0,38179.0,4.1938]
[1610084825414,0.13632608,38181.0,38180.0,0.00030574]
[1610084826312,0.13632608,38181.0,38176.0,0.13632608]
[1610084826515,0.13632608,38181.0,38180.0,0.00030575]
[1610084826812,0.13626,38189.0,38177.0,0.00030575]
[1610084827014,0.13626,38189.0,38180.0,0.00030575]
[1610084827213,0.13626,38189.0,38177.0,0.03208904]
[1610084827413,0.13626,38189.0,38188.0,0.13632608]
[1610084827812,0.0075404,38207.0,38188.0,0.1366318]
[1610084828014,0.53241106,38210.0,38188.0,0.1366318]
[1610084828015,0.0075457,38210.0,38188.0,0.1366318]
[1610084828215,0.0075457,38210.0,38189.0,0.00030569]
[1610084828514,0.0075541,38211.0,38189.0,0.00030569]
[1610084828914,0.11026,38213.0,38189.0,0.00030569]
[1610084829120,0.44469089,38216.0,38189.0,0.03238834]
[1610084829121,0.00756236,38216.0,38189.0,0.03238834]
[1610084829314,0.13632608,38198.0,38189.0,0.00030569]
[1610084829513,0.26388608,38198.0,38189.0,0.00030569]
[1610084829718,0.26388608,38198.0,38190.0,0.00030567]
[1610084830116,0.26388608,38198.0,38185.0,0.03239357]
[1610084830516,0.26388608,38198.0,38170.0,0.03239648]
[1610084830714,0.26388608,38198.0,38186.0,0.00030574]
[1610084830915,0.26388608,38198.0,38171.0,0.03239837]
[1610084831115,0.26388608,38198.0,38187.0,0.00030576]
[1610084831316,0.13632608,38188.0,38187.0,0.00030576]
[1610084831515,0.25522608,38188.0,38176.0,0.13632608]
[1610084831717,0.25522608,38188.0,38177.0,0.03239765]
[1610084832313,0.25522608,38188.0,38177.0,0.03209189]
[1610084833315,0.25522608,38188.0,38172.0,0.13632608]
[1610084833316,0.13632608,38178.0,38172.0,0.13632608]
[1610084833518,0.22484608,38178.0,38172.0,0.13632608]
[1610084834016,0.22484608,38178.0,38173.0,0.03240132]
[1610084835415,0.13632608,38174.0,38173.0,0.03240132]
[1610084835616,3.99622608,38174.0,38156.0,0.5]
[1610084836017,3.99622608,38174.0,38157.0,0.03240627]
[1610084837322,0.13632608,38158.0,38157.0,0.03240627]
[1610084837520,0.24286608,38158.0,38157.0,0.03240627]
[1610084838120,0.24286608,38158.0,38156.0,0.4916]
[1610084839319,0.24286608,38158.0,38157.0,0.13632608]
[1610084839520,0.24286608,38158.0,38156.0,0.4916]
[1610084839920,0.10654,38158.0,38156.0,0.4916]
[1610084841321,0.10654,38158.0,38157.0,0.13632608]
[1610084841519,0.10654,38158.0,38156.0,0.4916]
[1610084842322,0.10654,38158.0,38133.0,0.06421965]
[1610084842722,0.13632608,38163.0,38133.0,0.19581129]
[1610084843221,0.13632608,38163.0,38134.0,0.03241337]
[1610084843427,3.8599,38174.0,38154.0,0.13632608]
[1610084843722,3.8599,38174.0,38134.0,0.03241337]
[1610084843921,3.8599,38174.0,38155.0,0.03241569]
[1610084844123,3.8599,38174.0,38133.0,0.06421965]
[1610084844124,3.86295546,38174.0,38135.0,0.03241552]
[1610084844422,3.8599,38174.0,38133.0,0.09663549]
[1610084844623,3.8599,38174.0,38136.0,0.03241555]
[1610084844827,3.8599,38174.0,38134.0,0.03241551]
[1610084845223,3.8599,38174.0,38133.0,0.0966351]
[1610084845424,3.8599,38174.0,38135.0,0.03241559]
[1610084845626,3.86295268,38174.0,38134.0,0.03241627]
[1610084845923,3.86295268,38174.0,38133.0,0.06421965]
[1610084845924,0.01046112,38173.0,38136.0,0.03241633]
[1610084846123,0.01046112,38173.0,38135.0,0.03241691]
[1610084846526,0.01046112,38173.0,38137.0,0.03241698]
[1610084846726,0.01046112,38173.0,38136.0,0.03241696]
[1610084846925,0.00304923,38172.0,38138.0,0.03241492]
[1610084847326,0.13632608,38138.0,38137.0,0.03241609]
[1610084847526,0.13632608,38138.0,38135.0,0.13632608]
[1610084847727,0.22508608,38138.0,38137.0,0.03241855]
[1610084847926,0.22508608,38138.0,38135.0,0.12032608]
[1610084848133,0.08876,38138.0,38135.0,0.12032608]
[1610084848327,0.08876,38138.0,38137.0,0.03241988]
[1610084848527,0.08876,38138.0,38136.0,0.0324184]
[1610084848927,0.08876,38138.0,38137.0,0.03241786]
[1610084849228,0.01045815,38172.0,38137.0,0.03241786]
[1610084849427,0.00305162,38174.0,38153.0,0.13632608]
[1610084849834,0.00305029,38172.0,38154.0,0.03241653]
[1610084850030,0.00305029,38172.0,38153.0,0.12032608]
[1610084850231,0.00304944,38170.0,38124.0,0.0642225]
[1610084850430,0.10629944,38170.0,38124.0,0.0642225]
[1610084850631,0.10629944,38170.0,38124.0,0.09663911]
[1610084851433,0.01046742,38169.0,38144.0,0.13632608]
[1610084851933,0.01046742,38169.0,38145.0,0.03241683]
[1610084852234,0.01046742,38169.0,38144.0,0.12842608]
[1610084852433,0.003053,38169.0,38145.0,0.0321111]
[1610084852733,0.003053,38169.0,38145.0,0.03241703]
[1610084853434,0.13632608,38146.0,38145.0,0.03241703]
[1610084853634,0.23066608,38146.0,38145.0,0.03241703]
[1610084854036,0.23066608,38146.0,38124.0,0.1929734]
[1610084854535,0.23066608,38146.0,38112.0,0.03241915]
[1610084854836,0.23066608,38146.0,38125.0,0.03241881]
[1610084855236,0.23066608,38146.0,38120.0,0.08817]
[1610084855536,0.09434,38146.0,38139.0,0.13632608]
[1610084855937,0.09434,38146.0,38140.0,0.03241571]
[1610084857339,0.09434,38146.0,38145.0,0.13632608]
[1610084857736,0.09434,38146.0,38145.0,0.1687393]
[1610084858037,0.09434,38146.0,38145.0,0.1527393]
[1610084858737,0.13632608,38155.0,38145.0,0.1527393]
[1610084859139,0.11378317,38170.0,38146.0,0.03241379]
[1610084859639,0.01056731,38167.0,38157.0,0.5]
[1610084860040,0.00308271,38164.0,38158.0,0.00030592]
[1610084860241,0.00308271,38164.0,38158.0,0.03241522]
[1610084860540,0.003084,38165.0,38158.0,0.03241522]
[1610084861345,0.00308239,38164.0,38157.0,0.48239515]
[1610084861544,0.13632608,38158.0,38157.0,0.61872123]
[1610084861743,0.25340608,38158.0,38157.0,0.61872123]
[1610084862046,0.25340608,38158.0,38157.0,0.70735378]
[1610084862243,0.25340608,38158.0,38157.0,0.64313602]
[1610084862544,0.11708,38158.0,38157.0,0.70735126]
[1610084862744,0.11708,38158.0,38157.0,0.16874087]
[1610084862943,0.11708,38158.0,38157.0,0.23295083]
[1610084863244,0.11708,38158.0,38157.0,0.16874087]
[1610084864043,0.10633804,38170.0,38157.0,0.16874087]
[1610084864545,0.10325,38170.0,38158.0,0.03240651]
[1610084864745,0.01059092,38172.0,38158.0,0.03240651]
[1610084864945,0.00308902,38172.0,38158.0,0.03240651]
[1610084865347,0.0105999,38175.0,38158.0,0.03240651]
[1610084865545,0.13632608,38159.0,38158.0,0.03240651]
[1610084865748,0.27017608,38159.0,38158.0,0.03240651]
[1610084866348,0.27017608,38159.0,38158.0,0.00030583]
[1610084866649,0.27017608,38159.0,38158.0,0.03241253]
[1610084867051,0.27017608,38159.0,38143.0,0.0324132]
[1610084867255,0.27017608,38159.0,38158.0,0.03241185]
[1610084867549,0.13632608,38152.0,38144.0,0.03241236]
[1610084867852,0.13632608,38152.0,38141.0,0.13632608]
[1610084868050,0.13632608,38152.0,38145.0,0.03240771]
[1610084868349,0.13632608,38152.0,38142.0,0.03240763]
[1610084868549,0.13632608,38152.0,38146.0,0.03240752]
[1610084868749,0.13632608,38152.0,38143.0,0.03240761]
[1610084869249,0.13632608,38152.0,38141.0,0.13632608]
[1610084869250,0.13632608,38152.0,38144.0,0.03240758]
[1610084869549,0.13632608,38147.0,38141.0,0.13632608]
[1610084869950,0.13632608,38147.0,38145.0,0.03240901]
[1610084870150,0.13632608,38147.0,38142.0,0.03240901]
[1610084870351,0.26362608,38147.0,38146.0,0.0324093]
[1610084870651,0.26362608,38147.0,38142.0,0.03240932]
[1610084870850,0.26362608,38147.0,38146.0,0.03241189]
[1610084871251,0.26362608,38147.0,38143.0,0.03241209]
[1610084871452,0.26362608,38147.0,38146.0,0.03241201]
[1610084871655,0.26362608,38147.0,38144.0,0.03241245]
[1610084872053,0.26362608,38147.0,38146.0,0.03241192]
[1610084872353,0.26362608,38147.0,38145.0,0.0324118]
[1610084872555,0.26362608,38147.0,38146.0,0.03241141]
[1610084872955,0.26362608,38147.0,38142.0,0.03241217]
[1610084873854,0.1273,38147.0,38142.0,0.03241217]
[1610084874054,0.13385,38159.0,38142.0,0.03241217]
[1610084874254,0.12304,38147.0,38142.0,0.03241217]
[1610084874654,0.12304,38147.0,38142.0,0.5]
[1610084874854,0.12304,38147.0,38143.0,0.03240519]
[1610084875053,0.12304,38147.0,38143.0,0.59661591]
[1610084875353,0.12304,38147.0,38144.0,0.03240586]
[1610084875564,0.12304,38147.0,38146.0,0.13632608]
[1610084875954,0.12304,38147.0,38146.0,0.66873458]
[1610084876758,0.00303486,38160.0,38146.0,0.66873458]
[1610084877060,0.01040507,38161.0,38146.0,0.66873458]
[1610084877360,0.00303894,38165.0,38147.0,0.03240768]
[1610084877557,0.00303894,38165.0,38163.0,0.13632608]
[1610084877757,0.00303892,38166.0,38163.0,0.13632608]
[1610084877959,0.00303892,38166.0,38164.0,0.03240693]
[1610084878359,0.01041072,38165.0,38163.0,0.13472135]
[1610084878558,0.55823669,38165.0,38163.0,0.13472135]
[1610084878861,0.00737058,38164.0,38163.0,0.13472135]
[1610084879258,0.00737058,38164.0,38163.0,0.16712851]
[1610084879461,0.00303346,38164.0,38163.0,0.16712851]
[1610084879660,0.13935954,38164.0,38163.0,0.16712851]
[1610084880261,0.13935954,38164.0,38163.0,0.03240716]
[1610084880662,0.13935954,38164.0,38143.0,0.5]
[1610084880663,0.56926225,38164.0,38144.0,0.03240921]
[1610084880963,0.13632608,38164.0,38163.0,0.03240882]
[1610084881161,0.13632608,38164.0,38144.0,0.03240985]
[1610084881362,2.10812251,38164.0,38163.0,0.03240852]
[1610084881661,2.10812251,38164.0,38143.0,0.5]
[1610084881662,2.10812251,38164.0,38150.0,0.13632608]
[1610084882062,0.14669953,38147.0,38143.0,0.5]
[1610084882464,0.14669953,38147.0,38144.0,0.03241468]
[1610084883363,0.14669953,38147.0,38143.0,0.03241566]
[1610084883563,0.14669953,38147.0,38145.0,0.03241542]
[1610084883764,0.14669953,38147.0,38146.0,0.13632608]
[1610084884063,0.14669953,38147.0,38146.0,0.16874164]
[1610084885766,0.28302561,38147.0,38146.0,0.16874164]
[1610084887267,0.28302561,38147.0,38146.0,0.13632608]
[1610084887467,0.28302561,38147.0,38146.0,0.16874224]
[1610084889268,0.28302561,38147.0,38146.0,0.73296715]
[1610084889774,0.28302561,38147.0,38146.0,0.53241616]
[1610084889967,0.28302561,38147.0,38146.0,0.03241616]
[1610084890369,0.71283068,38147.0,38146.0,0.03241616]
[1610084890568,0.71283068,38147.0,38135.0,0.03]
[1610084890569,0.71283068,38147.0,38136.0,0.03241463]
[1610084890771,1.22882122,38147.0,38136.0,0.03241463]
[1610084891068,0.28302561,38147.0,38137.0,0.03241596]
[1610084891470,0.91427637,38147.0,38146.0,0.03241625]
[1610084891671,0.91427637,38147.0,38138.0,0.03241572]
[1610084891970,0.91427637,38147.0,38135.0,0.03]
[1610084891971,0.13632608,38139.0,38135.0,0.03]
[1610084892171,0.13632608,38139.0,38138.0,0.03241625]
[1610084892471,0.13632608,38139.0,38135.0,0.03]
[1610084892472,0.13934172,38139.0,38136.0,0.03241608]
[1610084892671,0.13934172,38139.0,38138.0,0.03241606]
[1610084893071,0.13934172,38139.0,38136.0,0.03241621]
[1610084893273,0.13934172,38139.0,38138.0,0.03241608]
[1610084893473,0.13934172,38139.0,38137.0,0.03241598]
[1610084893872,0.13934172,38139.0,38136.0,0.03241552]
[1610084894072,0.13934172,38139.0,38138.0,0.03241575]
[1610084894272,0.13934172,38139.0,38137.0,0.03241661]
[1610084894573,0.14667142,38139.0,38136.0,0.03241697]
[1610084894772,0.14667142,38139.0,38138.0,0.03241782]
[1610084894972,0.58197141,38139.0,38138.0,0.03241782]
[1610084895174,0.58197141,38139.0,38136.0,0.03241782]
[1610084895373,0.56746136,38139.0,38138.0,0.03241767]
[1610084895572,0.56746136,38139.0,38137.0,0.03241951]
[1610084895973,0.56746136,38139.0,38136.0,0.03241937]
[1610084896273,0.01449667,38138.0,38135.0,0.03]
[1610084896473,0.01449667,38138.0,38137.0,0.0324195]
[1610084896673,0.01449667,38138.0,38136.0,0.03241939]
[1610084896872,0.02180796,38138.0,38135.0,0.03]
[1610084897273,0.01449667,38138.0,38137.0,0.03241906]
[1610084897473,0.01449667,38138.0,38136.0,0.03241854]
[1610084897674,0.01032072,38138.0,38137.0,0.03241843]
[1610084898173,0.00731051,38138.0,38136.0,0.03242011]
[1610084898475,0.42925552,38138.0,38137.0,0.0324203]
[1610084899073,0.42925552,38138.0,38136.0,0.03242102]
[1610084899376,1.42740152,38138.0,38137.0,0.03242129]
[1610084899575,0.09796,38138.0,38137.0,0.03242129]
[1610084899774,0.09796,38138.0,38136.0,0.03242182]
[1610084899987,1.42728376,38138.0,38136.0,0.03242182]
[1610084900376,1.32916754,38137.0,38136.0,0.03242182]
[1610084901181,1.32916754,38137.0,38135.0,0.03]
[1610084901376,1.32916754,38137.0,38136.0,0.03242227]
[1610084901578,0.38535568,38137.0,38136.0,0.03242227]
[1610084902078,1.32851311,38137.0,38136.0,0.03242227]
[1610084902577,0.94315743,38137.0,38136.0,0.03242227]
[1610084902977,1.32851567,38137.0,38136.0,0.03242227]
[1610084903678,0.94315743,38137.0,38136.0,0.03242227]
[1610084904078,1.32851739,38137.0,38136.0,0.03242227]
[1610084904580,0.38535996,38137.0,38136.0,0.03242227]
[1610084905080,1.32790224,38137.0,38136.0,0.03242227]
[1610084905380,0.94254228,38137.0,38136.0,0.03242227]
[1610084905882,1.32790801,38137.0,38136.0,0.03242227]
[1610084906286,0.94254228,38137.0,38136.0,0.03242227]
[1610084906583,0.09796,38138.0,38136.0,0.03242227]
[1610084906782,0.4279238,38137.0,38136.0,0.03242227]
[1610084906982,0.5600038,38137.0,38136.0,0.03242227]
[1610084907986,0.5600038,38137.0,38135.0,0.014]
[1610084908384,1.4585463,38137.0,38135.0,0.014]
[1610084908786,0.42726609,38136.0,38135.0,0.014]
[1610084909284,0.42726609,38136.0,38135.0,0.04642052]
[1610084909484,0.42726609,38136.0,38135.0,0.014]
[1610084909885,0.42726609,38136.0,38135.0,0.04642046]
[1610084910086,0.42726609,38136.0,38115.0,0.13432608]
[1610084910285,0.42726609,38136.0,38135.0,0.0324205]
[1610084910687,0.42726609,38136.0,38116.0,0.03242041]
[1610084911186,1.5,38135.0,38110.0,0.28068489]
[1610084911388,1.5,38135.0,38110.0,0.16061489]
[1610084911389,0.00298819,38132.0,38110.0,0.16061489]
[1610084911587,0.00298819,38132.0,38111.0,0.0324273]
[1610084911788,0.10783709,38122.0,38111.0,0.0324273]
[1610084911987,0.25186608,38112.0,38092.0,0.10826]
[1610084912588,0.25186608,38112.0,38093.0,0.03244323]
[1610084912789,0.00296181,38107.0,38093.0,0.03244323]
[1610084913291,0.00296181,38107.0,38084.0,0.1317]
[1610084913292,0.00296125,38106.0,38085.0,0.03244675]
[1610084913693,0.00295805,38107.0,38085.0,0.03244675]
[1610084913892,0.13632608,38086.0,38085.0,0.03244675]
[1610084914292,0.11182,38103.0,38085.0,0.03244675]
[1610084915892,0.13632608,38102.0,38099.0,0.13632608]
[1610084916294,0.13632608,38102.0,38100.0,0.03244396]
[1610084916494,0.11182,38103.0,38100.0,0.03244396]
[1610084916992,0.11554,38112.0,38101.0,0.03244188]
[1610084917192,0.00295072,38117.0,38101.0,0.03244188]
[1610084917394,0.00295247,38119.0,38101.0,0.03244188]
[1610084917593,0.00295247,38119.0,38100.0,0.03244142]
[1610084917794,0.00295091,38121.0,38100.0,0.03244142]
[1610084917994,0.13632608,38119.0,38107.0,0.13632608]
[1610084918195,0.00295091,38121.0,38107.0,0.13632608]
[1610084918396,0.01012319,38124.0,38108.0,0.03243576]
[1610084918797,0.00295652,38127.0,38108.0,0.03243576]
[1610084919196,0.00295861,38129.0,38108.0,0.03243576]
[1610084919597,0.0029658,38132.0,38108.0,0.03243576]
[1610084919996,0.13632608,38132.0,38131.0,0.13632608]
[1610084920395,0.13632608,38132.0,38131.0,0.16874844]
[1610084921795,0.01023401,38142.0,38135.0,0.5]
[1610084921996,0.13632608,38139.0,38136.0,0.13632608]
[1610084922495,0.00298333,38144.0,38137.0,0.03242069]
[1610084922697,0.00298377,38145.0,38137.0,0.03242069]
[1610084923596,0.1610448,38147.0,38137.0,0.03242069]
[1610084923597,0.15692795,38147.0,38137.0,0.03242069]
[1610084924002,0.00298047,38146.0,38143.0,0.13632608]
[1610084924198,0.10603047,38146.0,38143.0,0.13632608]
[1610084924496,0.10305,38146.0,38144.0,0.03241643]
[1610084925200,0.00298228,38145.0,38144.0,0.03241643]
[1610084926001,0.14356844,38145.0,38143.0,0.13472061]
[1610084927001,0.00298113,38144.0,38143.0,0.13472061]
[1610084927300,0.00298113,38144.0,38143.0,0.16713725]
[1610084928001,0.00723552,38144.0,38143.0,0.16713725]
[1610084928402,0.43995632,38144.0,38143.0,0.16713725]
[1610084928704,0.4256315,38144.0,38143.0,0.03241664]
[1610084929104,0.4256315,38144.0,38126.0,0.19300446]
[1610084929505,0.4256315,38144.0,38143.0,0.03241765]
[1610084929803,0.4256315,38144.0,38127.0,0.03241654]
[1610084930003,0.00298096,38144.0,38143.0,0.03241549]
[1610084930302,0.00723779,38144.0,38141.0,0.13632608]
[1610084930501,0.00723779,38144.0,38143.0,0.03241562]
[1610084930704,0.0029806,38144.0,38142.0,0.03241519]
[1610084931003,0.0029806,38144.0,38143.0,0.03241419]
[1610084931304,0.13930731,38145.0,38142.0,0.03241313]
[1610084931503,0.13930731,38145.0,38144.0,0.03241255]
[1610084931704,0.13632608,38145.0,38144.0,0.0321159]
[1610084931904,0.13632608,38145.0,38143.0,0.03241251]
[1610084932105,0.13632608,38145.0,38144.0,0.03241219]
[1610084932706,0.14669953,38147.0,38142.0,4.37920999]
[1610084932906,0.14669953,38147.0,38144.0,0.03240996]
[1610084933104,0.14669953,38147.0,38143.0,0.03240945]
[1610084933305,0.14669953,38147.0,38145.0,0.03240815]
[1610084933704,0.14669953,38147.0,38143.0,0.09662966]
[1610084933905,0.14669953,38147.0,38146.0,0.03240639]
[1610084934105,0.14669953,38147.0,38146.0,0.13662266]
[1610084934308,0.14669953,38147.0,38146.0,0.13632608]
[1610084934507,0.14669953,38147.0,38146.0,0.1687335]
[1610084938509,0.14669953,38147.0,38146.0,3.4733335]
[1610084939009,0.14669953,38147.0,38146.0,3.53755007]
[1610084939512,0.00299489,38159.0,38146.0,3.53755007]
[1610084939710,0.00299683,38162.0,38146.0,5.03755007]
[1610084940212,0.00300255,38170.0,38161.0,0.13632608]
[1610084940409,0.00300255,38170.0,38161.0,3.26301837]
[1610084940610,0.5148652,38174.0,38161.0,3.26301837]
[1610084940611,0.00300578,38173.0,38161.0,3.26301837]
[1610084940810,0.00300578,38173.0,38162.0,0.09658208]
[1610084941011,0.0030056,38175.0,38162.0,0.09658208]
[1610084941411,0.00300671,38177.0,38162.0,0.09658208]
[1610084941813,0.00301203,38178.0,38162.0,0.09658208]
[1610084942014,0.00301203,38178.0,38177.0,0.13632608]
[1610084942418,0.01034293,38181.0,38177.0,0.13632608]
[1610084942614,0.01034293,38181.0,38177.0,0.16871237]
[1610084942813,0.4310988,38183.0,38177.0,0.16871237]
[1610084942814,0.0030193,38183.0,38178.0,0.03238651]
[1610084943114,0.00302108,38184.0,38178.0,0.03238651]
[1610084944114,0.00302108,38184.0,38183.0,0.13632608]
[1610084944415,0.00302833,38185.0,38183.0,0.13632608]
[1610084944616,0.00302833,38185.0,38184.0,0.03238399]
[1610084944914,0.00735451,38186.0,38184.0,0.03238399]
[1610084944915,0.00303104,38186.0,38184.0,0.03238399]
[1610084945116,0.0103923,38185.0,38184.0,0.03238399]
[1610084945515,0.43289628,38185.0,38183.0,0.13472202]
[1610084945814,0.43289628,38185.0,38165.0,0.15382]
[1610084946016,0.43289628,38185.0,38177.0,0.13632608]
[1610084946217,0.43294422,38184.0,38177.0,0.13632608]
[1610084946419,0.01038325,38181.0,38178.0,0.03238676]
[1610084946817,0.01038526,38182.0,38178.0,0.03238676]
[1610084947418,0.00303312,38181.0,38178.0,0.03238676]
[1610084947820,0.01458866,38179.0,38166.0,0.03239148]
[1610084948020,0.14998866,38179.0,38178.0,0.03239385]
[1610084948219,1.08876002,38179.0,38178.0,0.03239385]
[1610084948419,1.08876002,38179.0,38167.0,0.03239401]
[1610084948718,1.08876002,38179.0,38178.0,0.03239625]
[1610084948919,0.00303036,38168.0,38161.0,0.09660623]
[1610084949120,0.4315,38167.0,38144.0,0.06421073]